bitfinex-derivatives/quotes_ETHF0:USTF0_20241023
["timestamp","ask_amount","ask_price","bid_price","bid_amount"]
[1729697559551,3.07,2541.9,2541.8,0.39366]
[1729697559752,3.07,2541.9,2541.8,0.49196]
[1729697559950,3.07,2542.1,2542.0,0.39364]
[1729697560640,2.37,2542.1,2542.0,0.39364]
[1729697561254,3.07,2542.5,2542.4,0.39358]
[1729697561644,0.3936,2542.3,2542.2,0.39359]
[1729697561844,3.4636,2542.3,2542.2,0.39359]
[1729697562052,3.07,2542.3,2542.2,0.39359]
[1729697562642,3.46357,2542.5,2542.4,0.39356]
[1729697562952,7.41073743,2542.5,2542.4,0.39356]
[1729697563749,7.80429743,2542.5,2542.4,0.39356]
[1729697564360,7.80429743,2542.5,2542.3,2.37389]
[1729697564361,0.39358,2542.4,2542.3,2.37389]
[1729697564850,7.41073743,2542.5,2542.4,0.39358]
[1729697565547,7.41073743,2542.5,2542.4,41.19358]
[1729697566055,3.2078,2542.6,2542.5,0.39356]
[1729697566450,3.2078,2542.9,2542.5,3.9328]
[1729697566655,3.2078,2542.9,2542.4,40.8]
[1729697566656,3.07,2543.2,2542.8,0.98379]
[1729697566855,3.07,2543.2,2543.1,0.39347]
[1729697567050,3.07,2543.6,2543.5,0.39341]
[1729697567248,3.2078,2544.0,2543.4,4.05356]
[1729697567453,3.2078,2544.0,2543.9,0.39335]
[1729697567745,2.0929,2544.4,2544.3,0.39329]
[1729697567746,3.07,2544.4,2544.3,0.39329]
[1729697567946,1.9784,2544.7,2544.5,0.39326]
[1729697567947,3.07,2544.6,2544.5,0.39326]
[1729697568151,3.07,2544.6,2544.1,3.2078]
[1729697568352,3.46325,2544.6,2544.4,0.39326]
[1729697568548,3.46325,2544.6,2544.3,2.1193]
[1729697568549,3.07,2544.6,2544.5,0.39326]
[1729697568952,3.46324,2544.6,2544.5,0.39326]
[1729697569153,3.07,2544.6,2544.5,0.39326]
[1729697569354,0.39326,2544.5,2544.3,2.1193]
[1729697569556,3.07,2544.4,2544.3,2.51258]
[1729697569955,3.07,2544.7,2544.3,2.1193]
[1729697570152,3.07,2544.9,2544.4,3.2078]
[1729697570355,4.17319,2545.0,2544.8,0.39321]
[1729697570556,4.39821934,2544.9,2544.8,0.39321]
[1729697570760,4.17319,2545.0,2544.8,0.39321]
[1729697571149,0.39322,2544.7,2544.6,0.39323]
[1729697571356,7.38102,2544.8,2544.6,0.39323]
[1729697571557,0.39325,2544.6,2544.4,0.39326]
[1729697571854,3.78,2544.5,2544.3,2.1193]
[1729697572052,4.17327,2544.5,2544.3,43.31258]
[1729697572258,0.39327,2544.4,2544.3,2.1193]
[1729697572657,0.39327,2544.4,2544.2,2.3834]
[1729697572658,4.78144244,2544.4,2544.2,2.3834]
[1729697573050,4.38816244,2544.4,2544.2,1.9901]
[1729697573268,0.39329,2544.3,2544.1,0.39331]
[1729697573767,4.38816244,2544.4,2544.2,0.39329]
[1729697573768,4.78144244,2544.4,2544.2,0.39329]
[1729697574454,4.78144244,2544.4,2544.0,2.0101]
[1729697574455,4.38816244,2544.4,2544.1,0.0982]
[1729697574659,4.78144244,2544.4,2544.2,0.3933]
[1729697575470,7.38106,2544.5,2544.3,0.39329]
[1729697576164,0.39327,2544.4,2544.1,0.4915]
[1729697576356,3.78,2544.2,2544.1,0.49152]
[1729697576662,3.2078,2544.5,2544.4,0.39327]
[1729697576968,3.2078,2544.5,2544.3,0.39329]
[1729697577165,3.2078,2544.5,2544.0,5.2179]
[1729697577353,3.2078,2544.5,2544.4,0.39327]
[1729697578261,3.78,2544.7,2544.3,0.0982]
[1729697578453,3.2078,2544.8,2544.7,0.39322]
[1729697578761,0.39321,2544.9,2544.7,0.39322]
[1729697578968,3.78,2545.0,2544.4,3.2078]
[1729697579157,3.78,2545.0,2544.6,0.39323]
[1729697579356,0.39321,2544.8,2544.6,0.39323]
[1729697580061,0.39321,2544.8,2544.4,3.2078]
[1729697580062,0.39323,2544.7,2544.5,0.39325]
[1729697580259,0.39321,2544.8,2544.7,0.39322]
[1729697580463,0.39321,2544.8,2544.6,0.39323]
[1729697580773,7.94752399,2545.0,2544.4,3.2078]
[1729697581074,0.39321,2544.8,2544.4,3.2078]
[1729697581263,7.94752399,2545.0,2544.4,3.2078]
[1729697581264,3.78,2544.7,2544.4,0.39326]
[1729697581562,3.78,2544.7,2544.3,0.0982]
[1729697581563,4.09246673,2544.7,2544.6,0.39324]
[1729697581771,3.60101,2544.8,2544.7,0.39322]
[1729697581965,3.2078,2544.8,2544.7,0.39322]
[1729697582268,3.2078,2545.1,2545.0,0.39318]
[1729697582862,3.2078,2545.4,2545.3,0.39313]
[1729697583361,3.2078,2545.4,2544.8,2.0314]
[1729697583362,10.9166,2545.4,2544.8,2.0314]
[1729697583563,0.39319,2544.9,2544.8,2.0314]
[1729697583769,3.60097,2545.1,2545.0,0.39318]
[1729697584067,0.39314,2545.3,2545.2,0.39314]
[1729697584267,5.7595,2545.4,2545.2,0.39314]
[1729697584461,4.34295005,2545.3,2545.2,0.39314]
[1729697584665,4.17313,2545.4,2545.3,0.39313]
[1729697584869,0.39314,2545.3,2545.1,0.39315]
[1729697585064,0.39316,2545.2,2545.0,0.39317]
[1729697585270,0.39316,2545.1,2544.9,0.39318]
[1729697585474,0.39316,2545.1,2545.0,0.39318]
[1729697585971,3.78,2545.4,2545.1,0.39315]
[1729697585972,0.39315,2545.2,2545.1,0.39315]
[1729697586667,4.61450296,2545.3,2545.2,0.39315]
[1729697587063,0.02045269,2545.3,2544.8,3.01442]
[1729697587264,0.39315,2545.2,2545.1,0.39316]
[1729697587566,0.39317,2545.1,2545.0,0.39318]
[1729697587763,0.39319,2545.0,2544.9,0.39319]
[1729697588966,0.39319,2545.0,2544.6,0.39323]
[1729697588967,0.39321,2544.8,2544.6,0.39323]
[1729697589272,0.39324,2544.6,2544.5,0.39324]
[1729697589566,5.25022714,2545.0,2544.6,0.39323]
[1729697589567,0.39323,2544.7,2544.6,0.39323]
[1729697589960,0.39321,2544.8,2544.7,0.39321]
[1729697590166,3.78,2544.9,2544.4,42.8504]
[1729697590363,0.39321,2544.8,2544.5,0.39325]
[1729697590570,0.39325,2544.6,2544.5,0.39325]
[1729697591666,0.39325,2544.6,2544.4,42.8504]
[1729697591667,0.39326,2544.5,2544.4,2.0504]
[1729697591866,4.763,2544.9,2544.4,2.0504]
[1729697591867,7.9708,2544.9,2544.4,2.0504]
[1729697592064,0.39325,2544.6,2544.5,0.39325]
[1729697592267,4.40316447,2544.8,2544.4,2.0504]
[1729697592268,0.39326,2544.5,2544.4,2.0504]
[1729697592563,0.39327,2544.4,2544.3,2.1528]
[1729697592770,0.39327,2544.4,2544.3,0.0982]
[1729697593767,3.07,2544.6,2544.2,3.2078]
[1729697593768,2.0236,2544.5,2544.2,3.2078]
[1729697593970,2.0236,2544.5,2544.4,0.39327]
[1729697593971,2.41686,2544.5,2544.4,0.39327]
[1729697594164,4.41738318,2544.5,2544.4,0.39327]
[1729697594361,0.39324,2544.6,2544.5,0.39326]
[1729697594570,0.39323,2544.7,2544.6,0.39323]
[1729697595864,4.23205715,2544.8,2544.7,0.39322]
[1729697596067,3.2078,2544.9,2544.8,0.39321]
[1729697596270,6.2778,2545.4,2544.8,0.39321]
[1729697596568,0.39316,2545.2,2545.1,0.39315]
[1729697596776,12.66352936,2545.2,2544.0,3.49269142]
[1729697596967,12.66352936,2545.2,2543.7,2.0979]
[1729697596968,0.39336,2543.8,2543.7,2.0979]
[1729697597168,0.3934,2543.7,2543.6,0.39339]
[1729697597871,0.39337,2543.8,2543.7,0.39338]
[1729697598175,4.3660113,2543.9,2543.5,40.8982]
[1729697598371,0.39339,2543.7,2543.6,0.39339]
[1729697598570,4.3660113,2543.9,2543.7,0.39338]
[1729697598571,0.39338,2543.8,2543.7,0.39338]
[1729697598766,4.3660113,2543.9,2543.5,40.8982]
[1729697599179,4.3660113,2543.9,2543.7,0.39337]
[1729697599180,0.39337,2543.8,2543.7,0.39337]
[1729697599368,4.3660113,2543.9,2543.5,40.8982]
[1729697599676,3.78,2544.1,2543.5,40.8982]
[1729697599677,4.51389336,2543.8,2543.5,40.8982]
[1729697599980,4.51389336,2543.9,2543.5,40.8982]
[1729697600277,0.98335,2544.0,2543.6,0.39339]
[1729697600278,4.90728336,2543.7,2543.6,0.39339]
[1729697600470,0.39339,2543.7,2543.6,0.39339]
[1729697602179,0.39339,2543.6,2543.5,41.2916]
[1729697602672,4.30152788,2543.9,2543.5,40.8]
[1729697602875,0.39339,2543.6,2543.5,41.1934]
[1729697603375,4.30152788,2543.9,2543.5,41.1934]
[1729697603574,3.2078,2544.2,2543.7,3.78]
[1729697603772,3.2078,2544.6,2544.0,3.78]
[1729697604077,3.2078,2544.6,2544.4,0.39326]
[1729697604078,4.90921711,2544.5,2544.4,0.39326]
[1729697605284,4.51595711,2544.5,2544.4,0.39326]
[1729697605469,4.51595711,2544.5,2544.4,4.32366]
[1729697605674,4.51595711,2544.5,2544.1,8.1755]
[1729697605675,2.0639,2544.8,2544.1,7.1922]
[1729697605882,0.39323,2544.7,2544.6,0.39323]
[1729697606273,0.39323,2544.7,2544.6,41.19323]
[1729697606978,0.39322,2544.8,2544.7,0.39321]
[1729697607882,0.39322,2544.7,2544.6,41.19324]
[1729697608777,0.39322,2544.7,2544.6,40.8]
[1729697608992,0.39322,2544.7,2544.3,0.39327]
[1729697608993,0.39327,2544.4,2544.3,0.39327]
[1729697609285,0.98304,2544.8,2544.1,3.9844]
[1729697609485,0.39327,2544.4,2544.3,41.19327]
[1729697609987,4.40909623,2544.7,2544.4,0.39327]
[1729697609988,0.39327,2544.5,2544.4,0.39327]
[1729697610183,4.40909623,2544.7,2544.3,40.8]
[1729697610184,0.39327,2544.4,2544.3,40.8]
[1729697610482,0.39327,2544.4,2544.3,41.19329]
[1729697610880,0.39327,2544.5,2544.4,0.39327]
[1729697611278,4.40909623,2544.7,2544.3,41.19327]
[1729697611481,4.40909623,2544.7,2544.1,3.9844]
[1729697611482,5.39217623,2544.7,2544.1,3.9844]
[1729697611694,0.39328,2544.4,2544.3,0.39328]
[1729697612085,0.39328,2544.4,2544.3,41.19328]
[1729697612280,2.0883,2544.6,2544.3,41.19328]
[1729697612281,0.39326,2544.5,2544.4,0.39327]
[1729697612590,0.39327,2544.4,2544.3,41.19328]
[1729697612792,0.39326,2544.5,2544.4,0.39326]
[1729697613193,2.0883,2544.6,2544.1,3.9844]
[1729697613394,2.0883,2544.6,2544.3,0.39327]
[1729697613395,0.39327,2544.4,2544.3,0.39327]
[1729697613586,3.2078,2544.8,2544.1,3.9844]
[1729697613786,3.2078,2544.8,2544.3,3.2078]
[1729697614082,0.39327,2544.4,2544.3,3.60108]
[1729697614282,0.39327,2544.4,2544.3,0.39328]
[1729697614487,0.39329,2544.3,2544.2,40.8]
[1729697614681,0.39335,2543.9,2543.8,3.54317745]
[1729697614889,0.98325,2544.3,2543.8,2.129]
[1729697615087,0.98325,2544.3,2543.9,41.19333]
[1729697615088,0.39334,2544.0,2543.9,41.19333]
[1729697616890,0.39334,2544.0,2543.9,40.8]
[1729697617287,0.39332,2544.1,2544.0,0.39332]
[1729697617685,3.2078,2544.2,2543.9,41.19334]
[1729697617686,0.39333,2544.0,2543.9,41.19334]
[1729697617886,0.39333,2544.1,2544.0,0.39333]
[1729697618086,0.39333,2544.1,2543.9,40.8]
[1729697618087,3.2078,2544.2,2543.9,40.8]
[1729697618287,3.60111,2544.2,2544.1,0.39332]
[1729697618690,0.39333,2544.0,2543.9,0.39334]
[1729697618886,7.1382,2544.2,2543.7,1.9641]
[1729697618887,7.63330492,2544.2,2543.7,1.9641]
[1729697619087,0.39334,2544.0,2543.9,0.39334]
[1729697619796,7.63330492,2544.2,2543.8,40.8]
[1729697620097,0.39334,2544.0,2543.9,0.39334]
[1729697620796,7.63330492,2544.2,2543.8,40.8]
[1729697620994,3.2078,2544.2,2544.1,0.39332]
[1729697621195,3.6011,2544.2,2544.1,0.39332]
[1729697621393,3.60109,2544.3,2544.2,0.3933]
[1729697621594,3.2078,2544.3,2544.2,0.3933]
[1729697621900,3.60109,2544.3,2544.2,0.3933]
[1729697623099,0.39332,2544.2,2544.1,0.39331]
[1729697623294,0.39335,2544.0,2543.9,0.39334]
[1729697623497,4.19103,2544.3,2543.8,40.8]
[1729697623695,4.19103,2544.3,2543.8,41.19336]
[1729697623696,0.39335,2543.9,2543.8,41.19336]
[1729697623895,0.39333,2544.1,2544.0,0.39333]
[1729697624495,4.24519413,2544.2,2543.8,40.8]
[1729697624704,0.39331,2544.2,2544.1,0.3933]
[1729697624903,0.39329,2544.3,2544.2,0.39329]
[1729697625697,0.39331,2544.2,2544.1,0.39331]
[1729697626806,0.39335,2544.0,2543.9,0.39334]
[1729697627006,0.39335,2543.9,2543.8,40.8]
[1729697627197,0.39335,2543.9,2543.6,7.373]
[1729697627198,0.39338,2543.7,2543.6,3.60119]
[1729697627400,0.39338,2543.7,2543.6,3.2078]
[1729697627703,4.77415824,2543.7,2543.6,0.39339]
[1729697628308,0.39339,2543.7,2543.6,0.39339]
[1729697628607,0.39339,2543.7,2543.6,41.19339]
[1729697628806,5.3326,2543.9,2543.8,0.39336]
[1729697628807,3.60116,2543.9,2543.8,0.39336]
[1729697629003,0.39338,2543.7,2543.6,41.19339]
[1729697629200,0.39338,2543.7,2543.6,40.8982]
[1729697629408,0.39338,2543.7,2543.6,0.0982]
[1729697629596,0.39338,2543.7,2543.4,2.1094]
[1729697629597,6.67956896,2543.7,2543.4,2.1094]
[1729697629902,6.67956896,2543.7,2542.9,0.3935]
[1729697629903,11.90249,2543.6,2542.9,0.3935]
[1729697630110,11.90249,2543.6,2543.1,0.39346]
[1729697630111,0.39346,2543.2,2543.1,0.39346]
[1729697630501,0.39346,2543.2,2543.1,0.39347]
[1729697630502,4.16668896,2543.2,2543.1,0.39347]
[1729697630902,0.39346,2543.2,2543.1,0.39347]
[1729697631200,0.39346,2543.2,2542.9,40.8983]
[1729697631201,4.48057196,2543.2,2542.9,40.8983]
[1729697631403,0.39348,2543.1,2543.0,0.39348]
[1729697631705,0.39346,2543.2,2543.1,0.39346]
[1729697631900,0.39344,2543.3,2543.0,0.39349]
[1729697632106,3.2078,2543.6,2543.0,0.98372]
[1729697632406,0.39343,2543.4,2543.3,0.39343]
[1729697632906,4.1550152,2543.5,2543.0,0.98372]
[1729697633096,0.39345,2543.3,2543.2,0.39345]
[1729697633504,4.48989763,2543.3,2543.2,0.39345]
[1729697633903,4.09644763,2543.3,2543.2,0.39345]
[1729697634103,0.39343,2543.4,2543.3,0.39343]
[1729697634315,6.9878,2543.6,2542.9,45.08985]
[1729697634610,4.54938189,2543.5,2542.9,44.1061]
[1729697634811,0.39346,2543.2,2543.1,0.39347]
[1729697635319,5.53292189,2543.5,2543.0,0.39348]
[1729697635320,0.39347,2543.1,2543.0,0.39348]
[1729697635524,0.39348,2543.1,2543.0,0.39348]
[1729697635723,0.39349,2543.0,2542.9,41.2918]
[1729697636026,0.39349,2543.0,2542.9,0.0983]
[1729697636221,0.39353,2542.7,2542.6,3.2078]
[1729697636628,4.58088495,2542.7,2542.6,3.2078]
[1729697637620,8.51368495,2542.7,2542.6,3.2078]
[1729697637827,0.39358,2542.4,2542.3,3.2444]
[1729697638027,0.39358,2542.4,2542.3,3.2078]
[1729697638221,0.39358,2542.4,2542.3,44.4014]
[1729697638724,0.39358,2542.4,2542.3,44.0078]
[1729697639022,0.39358,2542.4,2542.3,44.4014]
[1729697639425,0.39358,2542.4,2542.3,44.0078]
[1729697640822,3.2078,2542.7,2542.3,47.9414]
[1729697641027,3.60133,2542.7,2542.6,0.39355]
[1729697641622,3.2078,2542.7,2542.6,0.39355]
[1729697641819,5.3271,2543.2,2542.6,3.9328]
[1729697642022,5.3271,2543.2,2542.9,0.39349]
[1729697642023,0.39349,2543.0,2542.9,0.39349]
[1729697642624,3.2078,2543.5,2542.9,3.9328]
[1729697642817,0.39345,2543.3,2543.2,0.39345]
[1729697643026,4.12404358,2543.4,2543.3,0.39343]
[1729697643326,4.76344,2543.8,2542.8,2.1356]
[1729697643327,3.78,2543.8,2543.2,3.2078]
[1729697643521,0.39336,2543.9,2543.8,0.39336]
[1729697643722,3.2078,2544.0,2543.8,40.8]
[1729697643926,4.71229134,2543.9,2543.8,40.8]
[1729697644326,4.31894134,2543.9,2543.5,3.2078]
[1729697644526,0.39337,2543.8,2543.7,0.39337]
[1729697644722,0.39337,2543.8,2543.7,41.19337]
[1729697644927,0.39337,2543.8,2543.7,40.8]
[1729697645123,4.31894134,2543.9,2543.7,40.8]
[1729697645535,0.39336,2543.8,2543.7,41.19338]
[1729697646335,0.39336,2543.8,2543.7,40.8]
[1729697646530,4.17336,2543.8,2543.7,40.8]
[1729697647331,0.39343,2543.4,2543.2,0.39345]
[1729697647536,0.39343,2543.4,2543.1,3.2078]
[1729697647537,3.78,2543.6,2543.1,3.2078]
[1729697647724,0.39346,2543.3,2543.2,40.8]
[1729697647930,8.68366912,2543.3,2543.2,40.8]
[1729697648232,0.39352,2542.8,2542.7,3.2078]
[1729697648429,0.98365,2543.2,2542.7,3.2078]
[1729697648430,0.39351,2542.9,2542.8,0.3935]
[1729697648836,0.3935,2543.0,2542.9,0.3935]
[1729697649028,4.83871171,2543.1,2543.0,0.39349]
[1729697649228,4.83871171,2543.1,2542.3,1.463]
[1729697649229,0.98376,2542.9,2542.0,3.2078]
[1729697649424,8.4508,2543.1,2541.7,3.2078]
[1729697649425,7.97181,2542.3,2541.7,3.2078]
[1729697649635,0.39367,2541.8,2541.7,3.60148]
[1729697649829,0.39367,2541.8,2541.7,3.2078]
[1729697650131,7.09089686,2542.2,2541.7,3.2078]
[1729697650132,6.10686686,2542.2,2541.7,3.2078]
[1729697650631,0.39367,2541.8,2541.7,3.60148]
[1729697651133,6.10686686,2542.2,2541.8,0.39366]
[1729697651434,0.39367,2541.8,2541.7,3.60148]
[1729697652234,7.09091686,2542.2,2541.7,3.2078]
[1729697652432,7.09090686,2542.2,2541.7,3.2078]
[1729697652637,0.39367,2541.8,2541.7,3.2078]
[1729697653136,8.84674868,2541.8,2541.7,3.2078]
[1729697653829,8.45307868,2541.8,2541.3,41.19374]
[1729697654033,0.39373,2541.4,2541.3,41.19374]
[1729697654732,3.78,2541.6,2541.3,41.19374]
[1729697654733,0.39373,2541.5,2541.4,0.39373]
[1729697655049,4.85108795,2541.5,2541.4,0.39373]
[1729697655534,4.45735795,2541.5,2541.4,0.39373]
[1729697655742,3.2078,2541.7,2541.4,3.9344]
[1729697656037,3.2078,2541.7,2541.6,0.3937]
[1729697656842,3.2078,2541.7,2541.5,1.9622]
[1729697657043,3.2078,2541.7,2541.5,2.35592]
[1729697657044,3.6015,2541.7,2541.5,2.35592]
[1729697657340,3.2078,2541.7,2541.6,0.3937]
[1729697657736,3.2078,2541.7,2541.6,4.3281]
[1729697658239,3.2078,2541.7,2541.6,0.3937]
[1729697658430,0.3937,2541.6,2541.5,2.35592]
[1729697658736,3.60149,2541.7,2541.5,2.35591]
[1729697659142,0.02020014,2541.6,2541.5,2.35591]
[1729697660643,0.02020014,2541.6,2541.5,6.29031]
[1729697662138,0.02020014,2541.6,2541.5,9.49811]
[1729697662344,0.39365,2542.0,2541.8,0.39366]
[1729697662549,0.39366,2541.9,2541.8,0.39367]
[1729697663438,0.39366,2541.9,2541.5,5.17]
[1729697663439,0.39367,2541.8,2541.7,0.39368]
[1729697664838,0.39367,2541.8,2541.7,0.39369]
[1729697665042,4.17366,2541.9,2541.8,0.39367]
[1729697665239,3.78,2541.9,2541.8,0.39367]
[1729697665850,4.17366,2541.9,2541.7,0.39368]
[1729697666035,3.78,2541.9,2541.8,0.39367]
[1729697666347,3.2078,2542.0,2541.8,0.39367]
[1729697666549,0.39366,2541.9,2541.8,0.39367]
[1729697666847,3.60145,2542.0,2541.8,0.39367]
[1729697667048,3.60145,2542.0,2541.5,2.94649]
[1729697667344,3.2078,2542.0,2541.5,2.94649]
[1729697667541,3.60145,2542.0,2541.8,0.39366]
[1729697667739,3.60145,2542.0,2541.9,0.39366]
[1729697667941,3.2078,2542.0,2541.5,2.94649]
[1729697668249,3.60145,2542.0,2541.5,2.94649]
[1729697668540,0.98401,2542.3,2541.7,3.2078]
[1729697668541,3.2078,2542.3,2541.7,3.2078]
[1729697668939,3.2078,2542.3,2542.0,0.39364]
[1729697668940,0.39363,2542.1,2542.0,0.39364]
[1729697669145,0.39362,2542.2,2542.1,0.39362]
[1729697669441,3.2078,2542.3,2541.7,4.19202]
[1729697669647,3.2078,2542.3,2542.1,0.39362]
[1729697669948,3.2078,2542.3,2542.2,0.39361]
[1729697670147,3.2078,2542.7,2542.6,0.39355]
[1729697670452,3.2078,2543.0,2542.9,0.39349]
[1729697670640,0.3935,2542.9,2542.8,0.39351]
[1729697670945,0.39351,2542.9,2542.8,0.39352]
[1729697671145,3.2078,2543.0,2542.8,40.8]
[1729697671337,0.3935,2542.9,2542.8,41.19352]
[1729697671945,3.60129,2543.0,2542.9,0.3935]
[1729697672339,3.2078,2543.0,2542.9,0.3935]
[1729697673243,3.60129,2543.0,2542.9,0.3935]
[1729697673548,3.2078,2543.0,2542.8,40.8]
[1729697673753,3.60129,2543.0,2542.9,0.3935]
[1729697674251,3.2078,2543.3,2542.9,3.9328]
[1729697674446,3.2078,2543.3,2543.2,0.39346]
[1729697674745,3.2078,2543.7,2543.3,0.98361]
[1729697675053,3.2078,2543.7,2543.4,2.0417]
[1729697675250,0.39344,2543.3,2543.2,3.60125]
[1729697675548,0.39344,2543.3,2543.2,3.2078]
[1729697676149,0.39344,2543.3,2543.2,3.60126]
[1729697676350,0.39344,2543.3,2543.2,3.2078]
[1729697677052,9.43865296,2543.3,2542.7,0.39353]
[1729697677255,0.39349,2543.0,2542.5,6.2334]
[1729697677443,0.39348,2543.1,2542.9,0.3935]
[1729697677949,0.39348,2543.1,2543.0,0.39349]
[1729697678155,0.39345,2543.3,2543.1,0.39346]
[1729697678350,0.39345,2543.3,2542.7,0.98383]
[1729697678351,0.39347,2543.1,2543.0,0.39348]
[1729697678553,0.39347,2543.2,2543.0,0.39348]
[1729697678744,0.39347,2543.2,2542.6,43.81327]
[1729697679050,0.39347,2543.2,2543.1,0.39347]
[1729697679350,0.39347,2543.2,2542.2,5.21]
[1729697679351,0.39364,2542.0,2541.6,1.41451745]
[1729697679564,3.78,2541.7,2541.2,1.02081745]
[1729697679850,1.43,2542.5,2540.7,4.2348]
[1729697679851,3.78,2541.3,2540.9,3.2078]
[1729697680057,13.31848983,2541.6,2540.7,4.2348]
[1729697680346,9.1156,2541.6,2540.7,4.2348]
[1729697680549,9.1156,2541.6,2540.9,0.39381]
[1729697680550,0.39375,2541.4,2540.9,0.39381]
[1729697680751,3.2078,2541.3,2540.7,4.2348]
[1729697680948,3.2078,2541.3,2540.7,4.62864]
[1729697680949,0.39379,2541.1,2540.7,4.62864]
[1729697681148,7.74793278,2541.3,2540.4,4.6378]
[1729697681149,0.39381,2541.0,2540.5,0.39387]
[1729697681349,0.39381,2540.9,2540.4,3.2078]
[1729697681549,0.39382,2540.9,2540.4,3.60168]
[1729697681750,0.39381,2541.0,2540.5,0.39387]
[1729697681951,4.54013278,2541.2,2540.4,3.2078]
[1729697682151,4.54013278,2541.2,2540.4,3.60168]
[1729697682152,0.39382,2540.9,2540.4,3.60168]
[1729697682354,0.39382,2540.9,2540.5,0.39387]
[1729697682954,4.54013278,2541.2,2540.9,0.3938]
[1729697683143,3.60155,2541.3,2541.0,0.39379]
[1729697683549,3.60155,2541.3,2540.8,2.0629]
[1729697683550,3.2078,2541.3,2540.8,2.0629]
[1729697683954,3.60156,2541.3,2541.0,0.3938]
[1729697684447,3.2078,2541.3,2541.1,0.39378]
[1729697685049,3.2078,2541.3,2541.0,0.39379]
[1729697685050,3.60155,2541.3,2541.0,0.39379]
[1729697685254,3.2078,2541.3,2541.1,41.19378]
[1729697685459,3.2078,2541.3,2541.1,40.8]
[1729697685651,5.9078,2541.6,2541.1,40.8]
[1729697685954,4.41328369,2541.5,2541.1,40.8]
[1729697686146,4.41328369,2541.5,2541.4,0.39373]
[1729697686350,0.3937,2541.7,2541.5,0.39372]
[1729697686755,3.2078,2541.8,2541.4,0.39372]
[1729697686957,0.3937,2541.6,2541.4,0.39372]
[1729697687352,0.3937,2541.6,2541.3,3.2078]
[1729697687548,0.39371,2541.6,2541.4,0.39372]
[1729697687745,0.3937,2541.7,2541.5,0.39371]
[1729697687950,0.39371,2541.6,2541.4,0.39373]
[1729697688154,3.2078,2541.8,2541.3,3.2078]
[1729697688155,0.3937,2541.7,2541.3,3.2078]
[1729697688343,0.39371,2541.6,2541.4,0.39373]
[1729697688746,3.2078,2542.2,2541.5,3.78]
[1729697688946,3.60137,2542.5,2541.7,0.98423]
[1729697689152,1.9996,2542.7,2541.8,0.98419]
[1729697689354,6.55650929,2542.7,2541.9,3.2078]
[1729697689554,1.9996,2542.7,2542.0,0.98411]
[1729697689755,4.37046183,2542.6,2541.9,3.2078]
[1729697690161,4.76401183,2542.6,2542.4,0.39358]
[1729697690556,4.37046183,2542.6,2541.9,4.19192]
[1729697690759,4.37046183,2542.6,2542.3,0.39359]
[1729697691052,4.76401183,2542.6,2542.4,0.39357]
[1729697691355,4.37046183,2542.6,2542.4,0.39357]
[1729697691565,4.76401183,2542.6,2542.4,0.39357]
[1729697691762,4.37046183,2542.6,2542.0,40.8]
[1729697691962,0.3936,2542.3,2542.1,0.39362]
[1729697692162,4.37046183,2542.6,2542.0,40.8]
[1729697692163,3.78,2542.4,2542.0,40.8]
[1729697692354,0.39363,2542.1,2542.0,40.8]
[1729697693564,0.9839,2542.6,2542.0,40.8]
[1729697693565,1.9996,2542.7,2542.0,44.7336]
[1729697693753,1.9996,2542.7,2542.0,40.8]
[1729697694064,3.78,2542.6,2542.0,40.8]
[1729697694458,3.78,2542.6,2542.2,0.39361]
[1729697694762,0.39359,2542.4,2542.2,0.39361]
[1729697695264,0.39355,2542.7,2542.5,0.39356]
[1729697695465,0.39356,2542.6,2542.4,0.39357]
[1729697696352,3.60134,2542.7,2542.4,0.39357]
[1729697697062,3.60134,2542.7,2541.8,3.78]
[1729697697063,3.78,2542.5,2541.1,4.22861745]
[1729697697263,0.39372,2541.5,2541.4,3.2078]
[1729697697562,0.39371,2541.6,2541.4,40.8]
[1729697697760,0.39371,2541.6,2541.4,41.19373]
[1729697697761,0.3937,2541.6,2541.4,41.19373]
[1729697697958,0.39377,2541.2,2541.1,3.2078]
[1729697698258,0.39377,2541.2,2540.7,3.2078]
[1729697698259,0.39378,2541.1,2540.7,3.2078]
[1729697698463,0.39376,2541.3,2541.1,0.39378]
[1729697698659,2.052,2541.4,2540.8,40.8]
[1729697699357,0.39376,2541.3,2541.1,0.39377]
[1729697699559,0.39376,2541.3,2541.1,0.39378]
[1729697699959,3.78,2541.7,2541.0,3.2078]
[1729697700160,0.39374,2541.4,2541.2,0.39376]
[1729697700770,0.39377,2541.2,2541.0,3.60158]
[1729697700968,0.39376,2541.3,2541.0,3.2078]
[1729697701152,0.39376,2541.3,2541.1,0.39378]
[1729697701667,3.78,2541.7,2541.2,3.9352]
[1729697701859,0.3937,2541.6,2541.4,0.39372]
[1729697702065,3.78,2541.7,2541.3,0.39374]
[1729697702368,0.39373,2541.5,2541.3,0.39374]
[1729697702762,0.39372,2541.5,2541.4,0.39372]
[1729697703069,3.78,2541.7,2541.0,4.19228]
[1729697703268,3.78,2541.7,2541.0,5.62228]
[1729697703462,3.78,2541.7,2541.0,4.6378]
[1729697703669,3.78,2541.4,2541.0,3.2078]
[1729697703962,4.31705586,2541.8,2541.0,4.19229]
[1729697704161,4.31705586,2541.8,2541.7,0.39369]
[1729697704358,0.39358,2542.4,2541.7,0.39369]
[1729697704560,6.9878,2542.5,2541.8,42.9231]